[Event "Early-Titled-Tuesday-Blitz-September-12-2023"]
[Site "Chess.com"]
[Date "2023.09.12"]
[Round "5"]
[White "guillembaches"]
[Black "charlescandycampbell"]
[Result "1-0"]
[WhiteElo "2527"]
[BlackElo "2297"]
[TimeControl "180+1"]
[EndTime "8:54:37 PDT"]
[Termination "guillembaches won on time"]

1. e4 {[%clk 0:03:00.9]} 1... c6 {[%clk 0:02:59.7]} 2. d4 {[%clk 0:03:00.5]}
2... d5 {[%clk 0:03:00.6]} 3. e5 {[%clk 0:03:00.9]} 3... Bf5 {[%clk 0:03:00]} 4.
h4 {[%clk 0:03:00.5]} 4... h5 {[%clk 0:02:59.1]} 5. Bd3 {[%clk 0:03:00.8]} 5...
Bxd3 {[%clk 0:02:58.8]} 6. Qxd3 {[%clk 0:03:01.4]} 6... e6 {[%clk 0:02:59.2]} 7.
Nf3 {[%clk 0:03:01.7]} 7... Nd7 {[%clk 0:02:58.3]} 8. Bg5 {[%clk 0:02:58.8]}
8... Be7 {[%clk 0:02:58.4]} 9. Nbd2 {[%clk 0:02:54.2]} 9... Nh6 {[%clk
0:02:56.1]} 10. Bxh6 {[%clk 0:02:49.6]} 10... Rxh6 {[%clk 0:02:55.5]} 11. c4
{[%clk 0:02:44.7]} 11... Qa5 {[%clk 0:02:49.3]} 12. O-O {[%clk 0:02:41.2]} 12...
Qa6 {[%clk 0:02:46]} 13. b3 {[%clk 0:02:40.5]} 13... Nb6 {[%clk 0:02:31.3]} 14.
a4 {[%clk 0:02:35.1]} 14... Rd8 {[%clk 0:02:23.8]} 15. Qc3 {[%clk 0:02:22]}
15... dxc4 {[%clk 0:01:53.7]} 16. bxc4 {[%clk 0:02:18.8]} 16... Nxa4 {[%clk
0:01:50.9]} 17. Qc2 {[%clk 0:01:57.8]} 17... b5 {[%clk 0:01:49.7]} 18. Rfc1
{[%clk 0:01:41.2]} 18... Qb7 {[%clk 0:01:45.9]} 19. Ne4 {[%clk 0:01:33.1]} 19...
a6 {[%clk 0:01:38.9]} 20. c5 {[%clk 0:01:25.9]} 20... Qd7 {[%clk 0:01:07.7]} 21.
Nd6+ {[%clk 0:01:21.3]} 21... Bxd6 {[%clk 0:01:06.3]} 22. exd6 {[%clk
0:01:20.5]} 22... f6 {[%clk 0:01:01.4]} 23. d5 {[%clk 0:01:13.6]} 23... cxd5
{[%clk 0:00:56.3]} 24. Nd4 {[%clk 0:01:07.5]} 24... Kf7 {[%clk 0:00:50.7]} 25.
Re1 {[%clk 0:01:07.2]} 25... e5 {[%clk 0:00:47.4]} 26. Nf5 {[%clk 0:01:05]}
26... Rhh8 {[%clk 0:00:45.7]} 27. c6 {[%clk 0:01:04.3]} 27... Qe6 {[%clk
0:00:44.2]} 28. c7 {[%clk 0:00:52.5]} 28... Rc8 {[%clk 0:00:35]} 29. Qc6 {[%clk
0:00:45.1]} 29... d4 {[%clk 0:00:16.9]} 30. Ne7 {[%clk 0:00:37.6]} 30... Rhe8
{[%clk 0:00:04.8]} 31. Nxc8 {[%clk 0:00:31.2]} 31... Rxc8 {[%clk 0:00:03.7]} 32.
d7 {[%clk 0:00:24.5]} 32... Qxc6 {[%clk 0:00:02.7]} 33. dxc8=Q {[%clk
0:00:24.8]} 1-0

[Event "Early-Titled-Tuesday-Blitz-September-12-2023"]
[Site "Chess.com"]
[Date "2023.09.12"]
[Round "5"]
[White "HATilay"]
[Black "Mops_2004"]
[Result "1-0"]
[WhiteElo "2564"]
[BlackElo "2734"]
[TimeControl "180+1"]
[EndTime "8:54:43 PDT"]
[Termination "HATilay won by resignation"]

1. e4 {[%clk 0:02:59.1]} 1... c6 {[%clk 0:03:00]} 2. d4 {[%clk 0:02:56.8]} 2...
d5 {[%clk 0:03:00.1]} 3. e5 {[%clk 0:02:57.6]} 3... Bf5 {[%clk 0:02:59.7]} 4.
Bd3 {[%clk 0:02:58.1]} 4... Bxd3 {[%clk 0:02:58.2]} 5. Qxd3 {[%clk 0:02:59]}
5... e6 {[%clk 0:02:53.1]} 6. Ne2 {[%clk 0:02:59]} 6... Qa5+ {[%clk 0:02:43.1]}
7. Nbc3 {[%clk 0:02:59.1]} 7... Qa6 {[%clk 0:02:40.9]} 8. Qh3 {[%clk 0:02:59.2]}
8... Ne7 {[%clk 0:02:26.3]} 9. O-O {[%clk 0:02:58.4]} 9... c5 {[%clk 0:02:22.8]}
10. a4 {[%clk 0:02:53]} 10... Nec6 {[%clk 0:01:59]} 11. Nb5 {[%clk 0:02:44.3]}
11... Qb6 {[%clk 0:01:58.9]} 12. Be3 {[%clk 0:02:25.9]} 12... Nd7 {[%clk
0:01:33.9]} 13. c4 {[%clk 0:01:44.9]} 13... a6 {[%clk 0:01:10.7]} 14. dxc5
{[%clk 0:01:33.7]} 14... Nxc5 {[%clk 0:01:05.4]} 15. Nd6+ {[%clk 0:00:36.6]}
15... Bxd6 {[%clk 0:01:04.8]} 16. exd6 {[%clk 0:00:37.3]} 16... dxc4 {[%clk
0:00:52]} 17. Qh5 {[%clk 0:00:27.1]} 17... e5 {[%clk 0:00:50.7]} 18. d7+ {[%clk
0:00:24.6]} 18... Kf8 {[%clk 0:00:34.1]} 19. f4 {[%clk 0:00:20.6]} 19... f6
{[%clk 0:00:16.5]} 20. fxe5 {[%clk 0:00:19.9]} 20... Nxe5 {[%clk 0:00:16.7]} 21.
Qxe5 {[%clk 0:00:19.4]} 21... Nxd7 {[%clk 0:00:13.2]} 22. Qe4 {[%clk 0:00:08.3]}
22... Qc7 {[%clk 0:00:13.1]} 23. Bf4 {[%clk 0:00:08.2]} 23... Qc5+ {[%clk
0:00:11.7]} 24. Kh1 {[%clk 0:00:08.7]} 24... Qb6 {[%clk 0:00:06]} 25. Nd4 {[%clk
0:00:08.1]} 25... Re8 {[%clk 0:00:06.1]} 26. Qd5 {[%clk 0:00:06.9]} 26... Ne5
{[%clk 0:00:05.5]} 27. Bxe5 {[%clk 0:00:06.5]} 27... Rxe5 {[%clk 0:00:05.7]} 28.
Qxe5 {[%clk 0:00:06.9]} 1-0

[Event "Early-Titled-Tuesday-Blitz-September-12-2023"]
[Site "Chess.com"]
[Date "2023.09.12"]
[Round "5"]
[White "ljm509"]
[Black "Journey_to_GrandMaster_YT"]
[Result "0-1"]
[WhiteElo "2341"]
[BlackElo "2605"]
[TimeControl "180+1"]
[EndTime "8:54:43 PDT"]
[Termination "Journey_to_GrandMaster_YT won by resignation"]

1. e4 {[%clk 0:03:00]} 1... d6 {[%clk 0:03:00.9]} 2. d4 {[%clk 0:02:59.6]} 2...
Nf6 {[%clk 0:03:01.8]} 3. Nc3 {[%clk 0:02:59.2]} 3... e5 {[%clk 0:03:02.4]} 4.
dxe5 {[%clk 0:02:51.7]} 4... dxe5 {[%clk 0:03:03.3]} 5. Qxd8+ {[%clk 0:02:51.7]}
5... Kxd8 {[%clk 0:03:04.2]} 6. f3 {[%clk 0:02:51.2]} 6... Be6 {[%clk
0:03:02.2]} 7. Be3 {[%clk 0:02:50]} 7... c6 {[%clk 0:03:01.7]} 8. O-O-O+ {[%clk
0:02:44.6]} 8... Nbd7 {[%clk 0:03:02.1]} 9. Nge2 {[%clk 0:02:39.4]} 9... Kc7
{[%clk 0:03:00.5]} 10. h4 {[%clk 0:02:33.5]} 10... Bc5 {[%clk 0:03:00]} 11. Bxc5
{[%clk 0:02:28.4]} 11... Nxc5 {[%clk 0:03:00.9]} 12. g4 {[%clk 0:02:22.7]} 12...
b5 {[%clk 0:02:58]} 13. Ng3 {[%clk 0:02:16.3]} 13... h5 {[%clk 0:02:06.5]} 14.
g5 {[%clk 0:02:15.6]} 14... Ne8 {[%clk 0:01:56.3]} 15. b4 {[%clk 0:02:14.2]}
15... Nd7 {[%clk 0:01:55.2]} 16. a4 {[%clk 0:02:13.9]} 16... a5 {[%clk
0:01:44.1]} 17. bxa5 {[%clk 0:02:06.6]} 17... b4 {[%clk 0:01:43.4]} 18. Nce2
{[%clk 0:01:43]} 18... g6 {[%clk 0:01:38.6]} 19. f4 {[%clk 0:01:43.9]} 19...
Rxa5 {[%clk 0:01:28.4]} 20. f5 {[%clk 0:01:43.1]} 20... Bc4 {[%clk 0:01:27.6]}
21. fxg6 {[%clk 0:01:30.3]} 21... fxg6 {[%clk 0:01:27.3]} 22. Bh3 {[%clk
0:01:29.8]} 22... Nc5 {[%clk 0:01:26.3]} 23. Rhf1 {[%clk 0:01:13.6]} 23... Rxa4
{[%clk 0:01:23.3]} 24. Rf3 {[%clk 0:01:03.1]} 24... Nd6 {[%clk 0:01:14.4]} 25.
Rf6 {[%clk 0:00:52.2]} 25... Ra1+ {[%clk 0:01:00.5]} 26. Kd2 {[%clk 0:00:45.7]}
26... Ndxe4+ {[%clk 0:00:57.9]} 27. Nxe4 {[%clk 0:00:44.6]} 27... Nxe4+ {[%clk
0:00:56.7]} 28. Ke3 {[%clk 0:00:44.1]} 28... Rxd1 {[%clk 0:00:55.5]} 29. Kxe4
{[%clk 0:00:42.4]} 29... Bxe2 {[%clk 0:00:54.9]} 30. Kxe5 {[%clk 0:00:42.3]}
30... Re8+ {[%clk 0:00:53.9]} 31. Kf4 {[%clk 0:00:42]} 31... Rd4+ {[%clk
0:00:44.6]} 32. Kg3 {[%clk 0:00:40.7]} 32... Bd1 {[%clk 0:00:42.1]} 33. Bg2
{[%clk 0:00:39.7]} 33... Rc4 {[%clk 0:00:37.9]} 34. Rxg6 {[%clk 0:00:38.3]}
34... Bxc2 {[%clk 0:00:38]} 35. Rh6 {[%clk 0:00:38.2]} 35... b3 {[%clk
0:00:37.4]} 36. Rxh5 {[%clk 0:00:37.5]} 36... b2 {[%clk 0:00:37.3]} 37. Rh6
{[%clk 0:00:38.1]} 37... b1=Q {[%clk 0:00:36.3]} 38. Rxc6+ {[%clk 0:00:37.7]}
38... Rxc6 {[%clk 0:00:36]} 39. Bxc6 {[%clk 0:00:38.6]} 39... Kxc6 {[%clk
0:00:36.1]} 40. h5 {[%clk 0:00:39]} 40... Qg1+ {[%clk 0:00:35]} 41. Kf4 {[%clk
0:00:38.7]} 41... Re4+ {[%clk 0:00:35.3]} 42. Kf5 {[%clk 0:00:38.3]} 42... Qg4+
{[%clk 0:00:34.7]} 43. Kf6 {[%clk 0:00:38.3]} 43... Re6+ {[%clk 0:00:35]} 44.
Kf7 {[%clk 0:00:38.4]} 44... Qf5+ {[%clk 0:00:35.4]} 45. Kg7 {[%clk 0:00:38.5]}
45... Re7+ {[%clk 0:00:35.3]} 46. Kg8 {[%clk 0:00:38.1]} 46... Qh7+ {[%clk
0:00:31.9]} 0-1

[Event "Early-Titled-Tuesday-Blitz-September-12-2023"]
[Site "Chess.com"]
[Date "2023.09.12"]
[Round "5"]
[White "zverr1"]
[Black "C_K_G"]
[Result "1/2-1/2"]
[WhiteElo "2475"]
[BlackElo "1982"]
[TimeControl "180+1"]
[EndTime "8:54:43 PDT"]
[Termination "Game drawn - insufficient material"]

1. e4 {[%clk 0:03:00.9]} 1... c5 {[%clk 0:02:56]} 2. Nf3 {[%clk 0:02:59]} 2...
d6 {[%clk 0:02:56]} 3. Bb5+ {[%clk 0:02:57]} 3... Bd7 {[%clk 0:02:54.1]} 4.
Bxd7+ {[%clk 0:02:56.7]} 4... Qxd7 {[%clk 0:02:53.6]} 5. c4 {[%clk 0:02:56.5]}
5... e6 {[%clk 0:02:52.9]} 6. O-O {[%clk 0:02:55.1]} 6... Nf6 {[%clk 0:02:51.5]}
7. Nc3 {[%clk 0:02:51.6]} 7... Nc6 {[%clk 0:02:49.7]} 8. d4 {[%clk 0:02:52.2]}
8... cxd4 {[%clk 0:02:49.4]} 9. Nxd4 {[%clk 0:02:53.1]} 9... Nxd4 {[%clk
0:02:46.7]} 10. Qxd4 {[%clk 0:02:54]} 10... a6 {[%clk 0:02:45.4]} 11. f3 {[%clk
0:02:42.3]} 11... Rc8 {[%clk 0:02:40]} 12. Be3 {[%clk 0:02:42.1]} 12... Be7
{[%clk 0:02:26.4]} 13. Rac1 {[%clk 0:02:40.3]} 13... O-O {[%clk 0:02:25.4]} 14.
Rfd1 {[%clk 0:02:40.3]} 14... Qc6 {[%clk 0:02:23.8]} 15. b3 {[%clk 0:02:39.3]}
15... Nd7 {[%clk 0:02:11.4]} 16. Qd3 {[%clk 0:02:30.6]} 16... Ne5 {[%clk
0:02:04.6]} 17. Qe2 {[%clk 0:02:30.5]} 17... Ng6 {[%clk 0:02:04]} 18. f4 {[%clk
0:02:26.9]} 18... Bf6 {[%clk 0:01:56.9]} 19. g3 {[%clk 0:02:23.4]} 19... Bxc3
{[%clk 0:01:52.8]} 20. Rxc3 {[%clk 0:02:24.3]} 20... d5 {[%clk 0:01:49.3]} 21.
exd5 {[%clk 0:02:21.6]} 21... exd5 {[%clk 0:01:48.4]} 22. Bd4 {[%clk 0:02:10.4]}
22... Rfe8 {[%clk 0:01:34.7]} 23. Qb2 {[%clk 0:02:06.3]} 23... dxc4 {[%clk
0:01:27.7]} 24. Rxc4 {[%clk 0:02:02.5]} 24... Qf3 {[%clk 0:01:26.5]} 25. Rf1
{[%clk 0:02:01.5]} 25... Qd3 {[%clk 0:01:06.6]} 26. Qc3 {[%clk 0:02:00.7]} 26...
Qxc3 {[%clk 0:01:02.1]} 27. Rxc3 {[%clk 0:02:00.6]} 27... Rxc3 {[%clk
0:01:00.8]} 28. Bxc3 {[%clk 0:02:01.4]} 28... h5 {[%clk 0:00:52.2]} 29. f5
{[%clk 0:01:59.4]} 29... Nf8 {[%clk 0:00:51.9]} 30. Re1 {[%clk 0:01:56.6]} 30...
Rxe1+ {[%clk 0:00:50.1]} 31. Bxe1 {[%clk 0:01:57.5]} 31... Nd7 {[%clk
0:00:50.1]} 32. Kf2 {[%clk 0:01:57.5]} 32... g6 {[%clk 0:00:49]} 33. Ke3 {[%clk
0:01:56.9]} 33... Ne5 {[%clk 0:00:42.9]} 34. Ke4 {[%clk 0:01:55.6]} 34... Nc6
{[%clk 0:00:35.1]} 35. fxg6 {[%clk 0:01:54.5]} 35... fxg6 {[%clk 0:00:35.1]} 36.
Kd5 {[%clk 0:01:52.8]} 36... Kf7 {[%clk 0:00:31.2]} 37. Kd6 {[%clk 0:01:53.3]}
37... Nd4 {[%clk 0:00:29.7]} 38. Kc7 {[%clk 0:01:50.5]} 38... b5 {[%clk
0:00:21.6]} 39. Kb6 {[%clk 0:01:48.5]} 39... Nf3 {[%clk 0:00:19.2]} 40. Bf2
{[%clk 0:01:48.9]} 40... Nxh2 {[%clk 0:00:18.8]} 41. Kxa6 {[%clk 0:01:49.6]}
41... Ng4 {[%clk 0:00:17.9]} 42. Bd4 {[%clk 0:01:48.5]} 42... g5 {[%clk
0:00:17.3]} 43. Kxb5 {[%clk 0:01:48.6]} 43... h4 {[%clk 0:00:17.6]} 44. gxh4
{[%clk 0:01:49.5]} 44... gxh4 {[%clk 0:00:18]} 45. Kc4 {[%clk 0:01:38.1]} 45...
h3 {[%clk 0:00:17.8]} 46. Bg1 {[%clk 0:01:38.8]} 46... Ne5+ {[%clk 0:00:17.5]}
47. Kd4 {[%clk 0:01:28.9]} 47... Nf3+ {[%clk 0:00:17.6]} 48. Ke3 {[%clk
0:01:29.8]} 48... Nxg1 {[%clk 0:00:17.2]} 49. Kf2 {[%clk 0:01:30.7]} 49... h2
{[%clk 0:00:16]} 50. Kg2 {[%clk 0:01:31.6]} 50... Nf3 {[%clk 0:00:16.2]} 51. a4
{[%clk 0:01:30.2]} 51... Nd4 {[%clk 0:00:15]} 52. a5 {[%clk 0:01:28.9]} 52...
Ke6 {[%clk 0:00:15.2]} 53. a6 {[%clk 0:01:29.4]} 53... Nb5 {[%clk 0:00:14.8]}
54. Kxh2 {[%clk 0:01:28.5]} 54... Kd5 {[%clk 0:00:15.2]} 55. Kg3 {[%clk
0:01:29]} 55... Kc5 {[%clk 0:00:15.6]} 56. Kf4 {[%clk 0:01:29.7]} 56... Kb6
{[%clk 0:00:16]} 57. Ke5 {[%clk 0:01:30.4]} 57... Kxa6 {[%clk 0:00:16.5]} 58.
Kd5 {[%clk 0:01:31.3]} 58... Kb6 {[%clk 0:00:16.9]} 59. b4 {[%clk 0:01:31.6]}
59... Na3 {[%clk 0:00:16.1]} 60. b5 {[%clk 0:01:32.5]} 60... Nxb5 {[%clk
0:00:16.2]} 1/2-1/2

[Event "Early-Titled-Tuesday-Blitz-September-12-2023"]
[Site "Chess.com"]
[Date "2023.09.12"]
[Round "5"]
[White "Bilan_Danila"]
[Black "Srisshhhtea"]
[Result "1-0"]
[WhiteElo "2599"]
[BlackElo "2428"]
[TimeControl "180+1"]
[EndTime "8:54:47 PDT"]
[Termination "Bilan_Danila won by checkmate"]

1. d4 {[%clk 0:03:00.9]} 1... Nf6 {[%clk 0:02:53.4]} 2. Nf3 {[%clk 0:03:00.9]}
2... d6 {[%clk 0:02:52.3]} 3. Bg5 {[%clk 0:02:57.6]} 3... Ne4 {[%clk 0:02:51]}
4. Bh4 {[%clk 0:02:56.6]} 4... c5 {[%clk 0:02:51.4]} 5. c3 {[%clk 0:02:55.7]}
5... Nd7 {[%clk 0:02:45.9]} 6. e3 {[%clk 0:02:54.2]} 6... h6 {[%clk 0:02:44.1]}
7. Nbd2 {[%clk 0:02:49.5]} 7... Nxd2 {[%clk 0:02:43.8]} 8. Qxd2 {[%clk
0:02:48.3]} 8... g5 {[%clk 0:02:43.8]} 9. Bg3 {[%clk 0:02:48]} 9... Bg7 {[%clk
0:02:44.5]} 10. Bc4 {[%clk 0:02:38.8]} 10... Nb6 {[%clk 0:02:41.4]} 11. Bd3
{[%clk 0:02:32.3]} 11... Be6 {[%clk 0:02:38.9]} 12. a4 {[%clk 0:02:24.9]} 12...
cxd4 {[%clk 0:02:29.5]} 13. exd4 {[%clk 0:02:03.4]} 13... Bc4 {[%clk 0:02:27.6]}
14. a5 {[%clk 0:01:58.7]} 14... Bxd3 {[%clk 0:02:26.1]} 15. Qxd3 {[%clk
0:01:59.6]} 15... Nd7 {[%clk 0:02:25.4]} 16. O-O {[%clk 0:01:57.7]} 16... O-O
{[%clk 0:02:25.2]} 17. Rfe1 {[%clk 0:01:57.9]} 17... Nf6 {[%clk 0:02:25]} 18. h4
{[%clk 0:01:51.9]} 18... g4 {[%clk 0:02:06.8]} 19. Nh2 {[%clk 0:01:51.8]} 19...
Qd7 {[%clk 0:02:07]} 20. Nf1 {[%clk 0:01:43.5]} 20... Nh5 {[%clk 0:02:06.1]} 21.
a6 {[%clk 0:01:34.1]} 21... b6 {[%clk 0:02:03.8]} 22. Ne3 {[%clk 0:01:11.7]}
22... f5 {[%clk 0:02:01]} 23. Nd5 {[%clk 0:00:56.6]} 23... e6 {[%clk 0:02:00.5]}
24. Nf4 {[%clk 0:00:53.1]} 24... Nxg3 {[%clk 0:01:57.7]} 25. fxg3 {[%clk
0:00:42.9]} 25... Rfe8 {[%clk 0:01:53.7]} 26. Re2 {[%clk 0:00:38]} 26... Rad8
{[%clk 0:01:51]} 27. Rae1 {[%clk 0:00:34]} 27... e5 {[%clk 0:01:51.1]} 28. Nd5
{[%clk 0:00:21.9]} 28... exd4 {[%clk 0:01:28.9]} 29. Ne7+ {[%clk 0:00:22]} 29...
Kh8 {[%clk 0:01:15.1]} 30. cxd4 {[%clk 0:00:20.7]} 30... Rxe7 {[%clk 0:00:59.2]}
31. Rxe7 {[%clk 0:00:20.3]} 31... Qa4 {[%clk 0:00:59.8]} 32. Rxg7 {[%clk
0:00:11.5]} 32... Kxg7 {[%clk 0:00:59.3]} 33. Re7+ {[%clk 0:00:10.6]} 33... Kf6
{[%clk 0:00:58.7]} 34. Qe3 {[%clk 0:00:09.4]} 34... Qc4 {[%clk 0:00:51.2]} 35.
Rxa7 {[%clk 0:00:05.3]} 35... Qe6 {[%clk 0:00:31.6]} 36. Qxh6# {[%clk
0:00:04.6]} 1-0

[Event "Early-Titled-Tuesday-Blitz-September-12-2023"]
[Site "Chess.com"]
[Date "2023.09.12"]
[Round "5"]
[White "KVAIDAN"]
[Black "1995Tiger"]
[Result "1-0"]
[WhiteElo "2292"]
[BlackElo "2099"]
[TimeControl "180+1"]
[EndTime "8:54:48 PDT"]
[Termination "KVAIDAN won on time"]

1. f4 {[%clk 0:02:59.8]} 1... d5 {[%clk 0:02:58.1]} 2. Nf3 {[%clk 0:02:59.3]}
2... c5 {[%clk 0:02:57.3]} 3. e3 {[%clk 0:02:59.3]} 3... Nc6 {[%clk 0:02:57.9]}
4. Bb5 {[%clk 0:02:59.2]} 4... a6 {[%clk 0:02:56.9]} 5. Bxc6+ {[%clk 0:02:58.8]}
5... bxc6 {[%clk 0:02:57.4]} 6. O-O {[%clk 0:02:58.1]} 6... Nf6 {[%clk
0:02:57.6]} 7. b3 {[%clk 0:02:58]} 7... e6 {[%clk 0:02:55.4]} 8. Ne5 {[%clk
0:02:57]} 8... Qc7 {[%clk 0:02:54.6]} 9. Bb2 {[%clk 0:02:57]} 9... Bd6 {[%clk
0:02:52.6]} 10. Rf3 {[%clk 0:02:56.9]} 10... Rg8 {[%clk 0:01:56.9]} 11. d3
{[%clk 0:02:54.3]} 11... Nd7 {[%clk 0:01:56.5]} 12. Nxd7 {[%clk 0:02:49.8]}
12... Bxd7 {[%clk 0:01:54.2]} 13. Nd2 {[%clk 0:02:50]} 13... f6 {[%clk
0:01:49.6]} 14. Rh3 {[%clk 0:02:46.8]} 14... h6 {[%clk 0:01:44.5]} 15. Qh5+
{[%clk 0:02:46.5]} 15... Ke7 {[%clk 0:01:43]} 16. Rg3 {[%clk 0:02:43.1]} 16...
Raf8 {[%clk 0:01:34.4]} 17. Re1 {[%clk 0:02:38.7]} 17... Be8 {[%clk 0:01:33.6]}
18. Qf3 {[%clk 0:02:37.4]} 18... Kd7 {[%clk 0:01:27.7]} 19. c4 {[%clk
0:02:36.7]} 19... g5 {[%clk 0:01:22.5]} 20. d4 {[%clk 0:02:28.4]} 20... gxf4
{[%clk 0:01:08.9]} 21. Rxg8 {[%clk 0:02:27.9]} 21... Rxg8 {[%clk 0:01:08.2]} 22.
e4 {[%clk 0:02:28.3]} 22... Bf7 {[%clk 0:00:57.9]} 23. cxd5 {[%clk 0:02:27.6]}
23... cxd5 {[%clk 0:00:53.7]} 24. e5 {[%clk 0:02:21.5]} 24... Be7 {[%clk
0:00:47.1]} 25. Qxf4 {[%clk 0:02:19.6]} 25... f5 {[%clk 0:00:39]} 26. Qxh6
{[%clk 0:02:12.9]} 26... Qd8 {[%clk 0:00:36.9]} 27. Nf3 {[%clk 0:02:09.3]} 27...
Rg6 {[%clk 0:00:36.6]} 28. Qd2 {[%clk 0:02:06.9]} 28... Qg8 {[%clk 0:00:36.4]}
29. Re2 {[%clk 0:02:05.3]} 29... Rg4 {[%clk 0:00:36.3]} 30. Qa5 {[%clk
0:02:04.4]} 30... cxd4 {[%clk 0:00:34]} 31. Qxa6 {[%clk 0:01:59.8]} 31... d3
{[%clk 0:00:25.5]} 32. Qxd3 {[%clk 0:01:58.6]} 32... Bc5+ {[%clk 0:00:24.9]} 33.
Kh1 {[%clk 0:01:57.3]} 33... Qb8 {[%clk 0:00:21]} 34. Bd4 {[%clk 0:01:51.7]}
34... Bxd4 {[%clk 0:00:15.4]} 35. Nxd4 {[%clk 0:01:51.3]} 35... Qb4 {[%clk
0:00:12.9]} 36. Rd2 {[%clk 0:01:42.1]} 36... Qa3 {[%clk 0:00:09.7]} 37. Qb5+
{[%clk 0:01:40.9]} 37... Ke7 {[%clk 0:00:09]} 38. Nc6+ {[%clk 0:01:39.5]} 38...
Kf8 {[%clk 0:00:09.1]} 39. Qb4+ {[%clk 0:01:33.7]} 39... Qxb4 {[%clk 0:00:07.9]}
40. Nxb4 {[%clk 0:01:33.6]} 40... Rxb4 {[%clk 0:00:08.8]} 41. g3 {[%clk
0:01:32.7]} 41... Rb6 {[%clk 0:00:08.8]} 42. Rc2 {[%clk 0:01:31.8]} 42... Ra6
{[%clk 0:00:09.1]} 43. a4 {[%clk 0:01:31.5]} 43... Be8 {[%clk 0:00:08.1]} 44.
Kg2 {[%clk 0:01:28]} 44... Ke7 {[%clk 0:00:08.3]} 45. Kf3 {[%clk 0:01:27.9]}
45... Rb6 {[%clk 0:00:08.6]} 46. Rc3 {[%clk 0:01:25.6]} 46... Bd7 {[%clk
0:00:06.7]} 47. Kf4 {[%clk 0:01:25.4]} 47... Bc8 {[%clk 0:00:06.9]} 48. h4
{[%clk 0:01:24.7]} 48... Rb4+ {[%clk 0:00:07.1]} 49. Kg5 {[%clk 0:01:22.3]}
49... Ba6 {[%clk 0:00:07.2]} 50. h5 {[%clk 0:01:22.1]} 50... Rg4+ {[%clk
0:00:06.6]} 51. Kh6 {[%clk 0:01:21.7]} 51... Be2 {[%clk 0:00:06.2]} 52. Kh7
{[%clk 0:01:19.9]} 52... Rg5 {[%clk 0:00:04.1]} 53. h6 {[%clk 0:01:20.3]} 53...
f4 {[%clk 0:00:03.8]} 54. gxf4 {[%clk 0:01:19.9]} 54... Rg4 {[%clk 0:00:04.1]}
55. a5 {[%clk 0:01:16.9]} 55... Rxf4 {[%clk 0:00:02.3]} 56. Rc7+ {[%clk
0:01:16.9]} 56... Kd8 {[%clk 0:00:02]} 57. Rg7 {[%clk 0:01:15.8]} 57... Bd3+
{[%clk 0:00:01.5]} 58. Kg8 {[%clk 0:01:14.8]} 1-0

[Event "Early-Titled-Tuesday-Blitz-September-12-2023"]
[Site "Chess.com"]
[Date "2023.09.12"]
[Round "5"]
[White "Arteler"]
[Black "KChor05TTV"]
[Result "0-1"]
[WhiteElo "2425"]
[BlackElo "2593"]
[TimeControl "180+1"]
[EndTime "8:54:49 PDT"]
[Termination "KChor05TTV won by resignation"]

1. e4 {[%clk 0:02:59.2]} 1... c5 {[%clk 0:02:59.5]} 2. Nf3 {[%clk 0:02:59.7]}
2... Nc6 {[%clk 0:02:59.3]} 3. c3 {[%clk 0:03:00.1]} 3... Nf6 {[%clk 0:02:59.1]}
4. e5 {[%clk 0:03:00.4]} 4... Nd5 {[%clk 0:02:59.2]} 5. d4 {[%clk 0:03:01.2]}
5... cxd4 {[%clk 0:02:59.8]} 6. Bc4 {[%clk 0:03:01.7]} 6... Nb6 {[%clk
0:03:00.4]} 7. Bb3 {[%clk 0:03:02.3]} 7... d5 {[%clk 0:02:55.4]} 8. exd6 {[%clk
0:03:02.6]} 8... e6 {[%clk 0:02:49.6]} 9. Nxd4 {[%clk 0:02:55.4]} 9... Bxd6
{[%clk 0:02:42.5]} 10. Nxc6 {[%clk 0:02:50.5]} 10... bxc6 {[%clk 0:02:43.4]} 11.
O-O {[%clk 0:02:45.7]} 11... O-O {[%clk 0:02:43.2]} 12. Qh5 {[%clk 0:02:41.8]}
12... Qf6 {[%clk 0:02:27.1]} 13. Nd2 {[%clk 0:02:34.9]} 13... Qg6 {[%clk
0:02:15.1]} 14. Qxg6 {[%clk 0:02:35]} 14... hxg6 {[%clk 0:02:16]} 15. Ne4 {[%clk
0:02:35.6]} 15... Be7 {[%clk 0:02:13.5]} 16. Be3 {[%clk 0:02:36]} 16... Ba6
{[%clk 0:02:10.2]} 17. Rfd1 {[%clk 0:02:33.3]} 17... Rfd8 {[%clk 0:02:08.7]} 18.
Bc5 {[%clk 0:02:30.8]} 18... Bxc5 {[%clk 0:01:53.7]} 19. Nxc5 {[%clk 0:02:31.7]}
19... Bc4 {[%clk 0:01:54.2]} 20. f3 {[%clk 0:02:22.7]} 20... Rd5 {[%clk
0:01:50.2]} 21. Ne4 {[%clk 0:01:33.9]} 21... Rad8 {[%clk 0:01:46.8]} 22. Rxd5
{[%clk 0:01:22.7]} 22... cxd5 {[%clk 0:01:28]} 23. Nd2 {[%clk 0:01:22.7]} 23...
Bd3 {[%clk 0:01:18.6]} 24. Kf2 {[%clk 0:01:21.7]} 24... g5 {[%clk 0:01:15.1]}
25. Ke3 {[%clk 0:01:18.2]} 25... Bg6 {[%clk 0:01:12]} 26. a4 {[%clk 0:01:11.2]}
26... e5 {[%clk 0:01:06.2]} 27. a5 {[%clk 0:01:10.5]} 27... d4+ {[%clk
0:01:06.1]} 28. cxd4 {[%clk 0:01:03.1]} 28... exd4+ {[%clk 0:01:07]} 29. Kf2
{[%clk 0:01:03.6]} 29... Nd5 {[%clk 0:01:07.2]} 30. Bxd5 {[%clk 0:00:52.6]}
30... Rxd5 {[%clk 0:01:05.7]} 31. Ra4 {[%clk 0:00:53.4]} 31... f6 {[%clk
0:00:54]} 32. Rc4 {[%clk 0:00:51.3]} 32... Rxa5 {[%clk 0:00:48.9]} 33. Rxd4
{[%clk 0:00:50.9]} 33... Ra2 {[%clk 0:00:48.9]} 34. Rb4 {[%clk 0:00:47.9]} 34...
a5 {[%clk 0:00:42.7]} 35. Rb8+ {[%clk 0:00:48.1]} 35... Kh7 {[%clk 0:00:41.8]}
36. Nc4 {[%clk 0:00:44.7]} 36... a4 {[%clk 0:00:39.6]} 37. Kg3 {[%clk
0:00:44.1]} 37... Bd3 {[%clk 0:00:37.6]} 38. Nd6 {[%clk 0:00:36.4]} 38... Bf1
{[%clk 0:00:24.4]} 39. Rb7 {[%clk 0:00:34.3]} 39... a3 {[%clk 0:00:23.7]} 40.
Kf2 {[%clk 0:00:18.1]} 40... Rxb2+ {[%clk 0:00:21.1]} 0-1